[Event "V Sunway Sitges Open 2018"]
[Site "Sitges"]
[Date "2018.12.18"]
[Round "5"]
[White "Adly, Ahmed"]
[Black "Wang, Kevin"]
[Result "1-0"]
[ECO "D00"]
[WhiteElo "2626"]
[BlackElo "2449"]
[Annotator "RC"]
[PlyCount "131"]
[EventDate "2018.12.14"]
[EventType "swiss"]
[EventCountry "ESP"]
[SourceTitle "playchess.com"]
[Source "ChessBase"]
[SourceQuality "1"]
[TimeControl "40/5400+30:1800+30"]

1. d4 {[%emt 0:00:02]} d5 {[%emt 0:00:00]} 2. g3 {[%emt 0:00:08]} Nf6 {[%emt 0:01:20]} 3. Bg2 {[%emt 0:00:11]} g6 {[%emt 0:01:14]} 4. c4 {[%emt 0:00:06]} c6 {[%emt 0:00:53]} 5. Qa4 {[%emt 0:00:10]} Bg7 {[%emt 0:06:10]} 6. cxd5 {[%emt 0:00:55]} Nxd5 {[%emt 0:00:29]} 7. Nf3 {[%emt 0:01:42]} O-O {[%emt 0:00:58]} 8. O-O {[%emt 0:00:10]} Bg4 {[%emt 0:04:55]} 9. Rd1 {[%emt 0:01:25]} a5 {[%emt 0:04:11]} 10. Nc3 {[%emt 0:05:07]} Nb4 {[%emt 0:13:09]} 11. Rd2 {[%emt 0:10:37]} Qc8 {[%emt 0:04:43]} 12. Qd1 {[%emt 0:03:50]} Rd8 {[%emt 0:07:26]} 13. Na4 {[%emt 0:02:18]} Nd7 {[%emt 0:09:44]} 14. h3 {[%emt 0:06:00]} Bxf3 {[%emt 0:03:03]} 15. Bxf3 {[%emt 0:00:03]} b5 {[%emt 0:01:36]} 16. Nc3 {[%emt 0:13:29]} Nb6 {[%emt 0:01:29]} 17. a3 {[%emt 0:00:03]} N4d5 {[%emt 0:02:02]} 18. e4 {[%emt 0:04:27]} Nxc3 {[%emt 0:05:06]} 19. bxc3 {[%emt 0:00:10]} Bh6 {[%emt 0:01:52]} 20. Bg4 {[%emt 0:01:01]} e6 {[%emt 0:05:01]} 21. Rd3 {[%emt 0:03:44]} Bxc1 {[%emt 0:00:37]} 22. Qxc1 {[%emt 0:00:14]} a4 {[%emt 0:02:35]} 23. h4 {[%emt 0:03:13]} Nc4 {[%emt 0:01:36]} 24. Rf3 {[%emt 0:04:10]} c5 {[%emt 0:05:07]} 25. h5 {[%emt 0:08:10]} cxd4 {[%emt 0:04:27]} 26. Qf4 {[%emt 0:02:14]} Rd7 {[%emt 0:03:01]} 27. cxd4 {[%emt 0:00:54]} Qc7 {[%emt 0:01:29]} 28. Qh6 {[%emt 0:01:56]} Qd6 {[%emt 0:01:22]} 29. Kg2 {[%emt 0:08:01]} Qf8 {[%emt 0:01:27]} 30. Qg5 {[%emt 0:00:08]} Qe7 {[%emt 0:01:34]} 31. Rf6 {[%emt 0:02:08]} h6 {[%emt 0:05:05]} 32. Qxb5 {[%emt 0:00:17]} Qxf6 {[%emt 0:00:15]} 33. Qxd7 {[%emt 0:00:04]} Rd8 {[%emt 0:00:16]} 34. Qc7 {[%emt 0:00:15]} gxh5 {[%emt 0:00:17]} 35. Bxh5 {[%emt 0:00:16]} Rxd4 {[%emt 0:00:13]} 36. Rb1 {[%emt 0:02:12]} Kg7 {[%emt 0:00:57]} 37. Qa7 {[%emt 0:06:01]} Nd6 {[%emt 0:00:51]} 38. Rb2 {[%emt 0:02:19]} Rxe4 {[%emt 0:00:48]} 39. Rb8 {[%emt 0:00:13]} Re5 {[%emt 0:00:43]} 40. Bf3 {[%emt 0:00:00]} Ne4 {[%emt 0:00:00]} 41. Qxa4 {[%emt 0:20:42]} Ng5 {[%emt 0:04:56]} 42. Bg4 {[%emt 0:01:18]} Qe7 {[%emt 0:19:29]} 43. Qa8 {[%emt 0:06:44]} Qd6 {[%emt 0:00:42]} 44. Rd8 {[%emt 0:00:21]} Qc5 {[%emt 0:03:12]} 45. Rg8+ {[%emt 0:01:42]} Kf6 {[%emt 0:00:58]} 46. Qd8+ {[%emt 0:00:31]} Qe7 {[%emt 0:00:01]} 47. Qxe7+ {[%emt 0:04:04]} Kxe7 {[%emt 0:00:01]} 48. f4 {[%emt 0:00:02]} Ra5 {[%emt 0:02:49]} 49. fxg5 {[%emt 0:00:09]} hxg5 {[%emt 0:00:02]} 50. Bf3 {[%emt 0:01:21]} Rxa3 {[%emt 0:00:08]} 51. Rxg5 {[%emt 0:00:03]} f5 {[%emt 0:00:05]} 52. Bh5 {[%emt 0:05:01]} Kf6 {[%emt 0:01:13]} 53. Rg6+ {[%emt 0:00:03]} Ke5 {[%emt 0:00:03]} 54. Bf3 {[%emt 0:01:34]} Ra2+ {[%emt 0:00:13]} 55. Kf1 {[%emt 0:00:14]} f4 {[%emt 0:01:58]} 56. g4 {[%emt 0:01:22]} Ra3 {[%emt 0:01:12]} 57. Kf2 {[%emt 0:00:18]} Re3 {[%emt 0:00:42]} 58. Rh6 {[%emt 0:01:02]} Ra3 {[%emt 0:00:25]} 59. Rg6 {[%emt 0:01:53]} Re3 {[%emt 0:00:14]} 60. Rg8 {[%emt 0:00:07]} Ra3 {[%emt 0:00:32]} 61. Rf8 {[%emt 0:00:06]} Ra2+ {[%emt 0:00:27]} 62. Be2 {[%emt 0:00:04]} Ra3 {[%emt 0:00:14]} 63. Rb8 {[%emt 0:00:39]} Rg3 {[%emt 0:02:54]} 64. Rb4 {[%emt 0:01:13]} Rh3 {[%emt 0:00:31]} 65. Bf3 {[%emt 0:00:11]} Rg3 {[%emt 0:00:08]} 66. Re4+ {[%emt 0:00:06]} 1-0

[Event "V Sunway Sitges Open 2018"]
[Site "Sitges"]
[Date "2018.12.18"]
[Round "5"]
[White "Peralta, Fernando"]
[Black "Bharath Subramaniyam H"]
[Result "1/2-1/2"]
[ECO "A05"]
[WhiteElo "2584"]
[BlackElo "2234"]
[Annotator "ChessBase"]
[PlyCount "89"]
[EventDate "2018.12.14"]
[EventType "swiss"]
[EventCountry "ESP"]
[SourceTitle "playchess.com"]
[Source "ChessBase"]
[SourceQuality "1"]
[TimeControl "40/5400+30:1800+30"]

1. Nf3 {[%emt 0:00:00]} Nf6 {[%emt 0:00:00]} 2. c4 {[%emt 0:00:00]} b6 {[%emt 0:01:29]} 3. Nc3 {[%emt 0:00:58]} Bb7 {[%emt 0:00:14]} 4. d4 {[%emt 0:00:48]} g6 {[%emt 0:00:55]} 5. Qc2 {[%emt 0:00:19]} Bg7 {[%emt 0:01:45]} 6. e4 {[%emt 0:00:10]} d6 {[%emt 0:04:32]} 7. Be2 {[%emt 0:00:19]} O-O {[%emt 0:00:57]} 8. O-O {[%emt 0:00:10]} c5 {[%emt 0:23:31]} 9. d5 {[%emt 0:01:06]} Nbd7 {[%emt 0:00:09]} 10. Bf4 {[%emt 0:02:39]} a6 {[%emt 0:01:24]} 11. a4 {[%emt 0:10:05]} Qc7 {[%emt 0:00:54]} 12. Rad1 {[%emt 0:00:16]} Rad8 {[%emt 0:01:28]} 13. h3 {[%emt 0:01:49]} Ne5 {[%emt 0:05:57]} 14. Nxe5 {[%emt 0:07:01]} dxe5 {[%emt 0:00:09]} 15. Be3 {[%emt 0:00:13]} a5 {[%emt 0:01:09]} 16. Qc1 {[%emt 0:20:22]} Ba6 {[%emt 0:08:19]} 17. b3 {[%emt 0:01:10]} Qd6 {[%emt 0:08:35]} 18. Kh1 {[%emt 0:04:23]} Nd7 {[%emt 0:02:09]} 19. Bd3 {[%emt 0:02:53]} Kh8 {[%emt 0:08:02]} 20. Ne2 {[%emt 0:02:01]} Rg8 {[%emt 0:06:12]} 21. f3 {[%emt 0:04:40]} Rdf8 {[%emt 0:01:31]} 22. Qc2 {[%emt 0:03:17]} Bc8 {[%emt 0:03:41]} 23. Nc3 {[%emt 0:00:31]} Ba6 {[%emt 0:00:21]} 24. Rf2 {[%emt 0:00:35]} Nf6 {[%emt 0:00:42]} 25. g4 {[%emt 0:01:12]} Nd7 {[%emt 0:06:12]} 26. Rh2 {[%emt 0:01:03]} Nf6 {[%emt 0:06:37]} 27. Rf1 {[%emt 0:03:38]} Rc8 {[%emt 0:00:51]} 28. Ne2 {[%emt 0:00:45]} e6 {[%emt 0:00:13]} 29. Ng3 {[%emt 0:02:18]} exd5 {[%emt 0:00:42]} 30. cxd5 {[%emt 0:02:50]} Bxd3 {[%emt 0:01:02]} 31. Qxd3 {[%emt 0:00:06]} c4 {[%emt 0:00:36]} 32. bxc4 {[%emt 0:00:15]} Qb4 {[%emt 0:00:01]} 33. Rc2 {[%emt 0:08:02]} Nd7 {[%emt 0:02:01]} 34. Ra1 {[%emt 0:01:13]} Rc7 {[%emt 0:01:54]} 35. Bd2 {[%emt 0:07:53]} Qd6 {[%emt 0:00:19]} 36. Be3 {[%emt 0:05:59]} Qb4 {[%emt 0:00:38]} 37. Bd2 {[%emt 0:00:54]} Qd6 {[%emt 0:00:02]} 38. Kg2 {[%emt 0:01:33]} Rgc8 {[%emt 0:00:35]} 39. h4 {[%emt 0:01:13]} Nc5 {[%emt 0:00:51]} 40. Qa3 {[%emt 0:00:00]} Bf8 {[%emt 0:00:00]} 41. Qe3 {[%emt 0:15:24]} Qd7 {[%emt 0:04:12]} 42. Rca2 {[%emt 0:01:55]} Qd6 {[%emt 0:02:30]} 43. Rc2 {[%emt 0:05:13]} Qd7 {[%emt 0:00:12]} 44. Rca2 {[%emt 0:08:03]} Qd6 {[%emt 0:01:16]} 45. Rc2 {[%emt 0:03:41]} 1/2-1/2

[Event "V Sunway Sitges Open 2018"]
[Site "Sitges"]
[Date "2018.12.18"]
[Round "5"]
[White "Henderson de La Fuente, Lance"]
[Black "Antova, Gabriela"]
[Result "1-0"]
[ECO "B23"]
[WhiteElo "2484"]
[BlackElo "2303"]
[Annotator "ChessBase"]
[PlyCount "58"]
[EventDate "2018.12.14"]
[EventType "swiss"]
[EventCountry "ESP"]
[SourceTitle "playchess.com"]
[Source "ChessBase"]
[SourceQuality "1"]
[TimeControl "40/5400+30:1800+30"]

1. e4 {[%emt 0:00:00]} c5 {[%emt 0:00:00]} 2. Nc3 {[%emt 0:00:00]} d6 {[%emt 0:00:00]} 3. d4 {[%emt 0:00:10]} cxd4 {[%emt 0:00:22]} 4. Qxd4 {[%emt 0:00:06]} Nc6 {[%emt 0:00:51]} 5. Qd2 {[%emt 0:00:08]} Nf6 {[%emt 0:01:54]} 6. b3 {[%emt 0:00:15]} g6 {[%emt 0:01:45]} 7. Bb2 {[%emt 0:00:13]} Bg7 {[%emt 0:00:11]} 8. O-O-O O-O {[%emt 0:12:15]} 9. f3 {[%emt 0:00:53]} a5 {[%emt 0:07:57]} 10. a4 {[%emt 0:02:28]} Bd7 {[%emt 0:07:49]} 11. Nge2 {[%emt 0:04:03]} Rc8 {[%emt 0:06:42]} 12. Kb1 {[%emt 0:01:30]} Nb4 {[%emt 0:04:06]} 13. g4 {[%emt 0:09:16]} Rc5 {[%emt 0:05:47]} 14. Nd4 {[%emt 0:25:07]} Qb8 {[%emt 0:03:08]} 15. Na2 {[%emt 0:12:23]} Nxa2 {[%emt 0:16:04]} 16. Kxa2 {[%emt 0:00:07]} Rfc8 {[%emt 0:00:23]} 17. c4 b6 {[%emt 0:07:20]} 18. Bd3 {[%emt 0:09:24]} Ne8 {[%emt 0:05:47]} 19. h4 {[%emt 0:01:00]} e6 {[%emt 0:02:22]} 20. h5 {[%emt 0:05:47]} d5 {[%emt 0:02:37]} 21. exd5 {[%emt 0:07:15]} exd5 {[%emt 0:00:07]} 22. hxg6 {[%emt 0:00:21]} hxg6 {[%emt 0:00:12]} 23. Nb5 {[%emt 0:07:46]} Nf6 24. Rh3 {[%emt 0:06:33]} dxc4 {[%emt 0:08:54]} 25. Bxc4 {[%emt 0:01:28]} Bxb5 {[%emt 0:00:14]} 26. axb5 {[%emt 0:00:43]} Qc7 {[%emt 0:02:27]} 27. Kb1 {[%emt 0:03:23]} a4 {[%emt 0:00:40]} 28. Rdh1 g5 {[%emt 0:02:57]} 29. Qd3 {[%emt 0:02:47]} Kf8 1-0

[Event "V Sunway Sitges Open 2018"]
[Site "Sitges"]
[Date "2018.12.18"]
[Round "5"]
[White "Seyb, Alexander"]
[Black "Kelires, Andreas"]
[Result "0-1"]
[ECO "B92"]
[WhiteElo "2419"]
[BlackElo "2535"]
[Annotator "ChessBase"]
[PlyCount "82"]
[EventDate "2018.12.14"]
[EventType "swiss"]
[EventCountry "ESP"]
[SourceTitle "playchess.com"]
[Source "ChessBase"]
[SourceQuality "1"]
[TimeControl "40/5400+30:1800+30"]

1. e4 {[%emt 0:00:00]} c5 {[%emt 0:00:00]} 2. Nf3 {[%emt 0:00:00]} d6 {[%emt 0:00:00]} 3. d4 {[%emt 0:00:00]} cxd4 {[%emt 0:00:00]} 4. Nxd4 {[%emt 0:00:00]} Nf6 {[%emt 0:00:00]} 5. Nc3 {[%emt 0:00:00]} a6 {[%emt 0:00:00]} 6. Be2 {[%emt 0:00:01]} e5 {[%emt 0:00:02]} 7. Nb3 {[%emt 0:00:06]} Be7 {[%emt 0:00:18]} 8. Be3 {[%emt 0:00:06]} Be6 {[%emt 0:00:26]} 9. Qd3 {[%emt 0:00:07]} Nbd7 {[%emt 0:01:19]} 10. Nd5 {[%emt 0:00:16]} Bxd5 {[%emt 0:00:16]} 11. exd5 {[%emt 0:00:04]} O-O {[%emt 0:05:52]} 12. g4 {[%emt 0:00:21]} Nb6 {[%emt 0:12:40]} 13. c4 {[%emt 0:15:59]} Na4 {[%emt 0:07:29]} 14. O-O-O {[%emt 0:08:17]} Nd7 {[%emt 0:11:09]} 15. h4 {[%emt 0:08:11]} Rc8 {[%emt 0:08:53]} 16. Kb1 {[%emt 0:02:34]} e4 {[%emt 0:22:40]} 17. Qxe4 {[%emt 0:26:53]} Bf6 {[%emt 0:02:42]} 18. Nd4 {[%emt 0:00:09]} g6 {[%emt 0:06:44]} 19. g5 {[%emt 0:02:31]} Bg7 {[%emt 0:00:08]} 20. h5 {[%emt 0:07:06]} Re8 {[%emt 0:01:05]} 21. Qc2 {[%emt 0:00:31]} Nab6 {[%emt 0:00:16]} 22. hxg6 {[%emt 0:00:27]} hxg6 {[%emt 0:00:04]} 23. Qb3 {[%emt 0:03:02]} Nc5 {[%emt 0:02:12]} 24. Qb4 {[%emt 0:01:49]} Nbd7 {[%emt 0:02:11]} 25. Bg4 {[%emt 0:07:27]} Rc7 {[%emt 0:03:46]} 26. Bxd7 {[%emt 0:00:10]} Qxd7 {[%emt 0:02:38]} 27. Rh4 {[%emt 0:00:02]} Qc8 {[%emt 0:05:16]} 28. Qd2 {[%emt 0:10:06]} Re4 {[%emt 0:03:40]} 29. Rdh1 {[%emt 0:01:39]} Rxh4 {[%emt 0:00:10]} 30. Rxh4 {[%emt 0:00:01]} Re7 {[%emt 0:00:59]} 31. f3 {[%emt 0:03:27]} Nd7 {[%emt 0:00:29]} 32. b3 {[%emt 0:00:54]} Ne5 {[%emt 0:00:58]} 33. f4 {[%emt 0:00:24]} Ng4 {[%emt 0:00:39]} 34. Bg1 {[%emt 0:00:14]} Re4 {[%emt 0:00:26]} 35. Rh3 {[%emt 0:03:45]} Nf2 {[%emt 0:01:07]} 36. Rh2 {[%emt 0:00:48]} Rxd4 {[%emt 0:00:12]} 37. Qxf2 {[%emt 0:00:01]} Qf5+ {[%emt 0:00:08]} 38. Kc1 {[%emt 0:00:08]} Rxf4 {[%emt 0:00:09]} 39. Qe3 {[%emt 0:00:39]} Re4 {[%emt 0:01:26]} 40. Qb6 {[%emt 0:00:00]} Qxg5+ {[%emt 0:00:00]} 41. Kc2 {[%emt 0:02:24]} Re1 {[%emt 0:02:30]} 0-1

[Event "V Sunway Sitges Open 2018"]
[Site "Sitges"]
[Date "2018.12.18"]
[Round "5"]
[White "Gual Pascual, Antonio"]
[Black "Kadric, Denis"]
[Result "1-0"]
[ECO "A41"]
[WhiteElo "2357"]
[BlackElo "2554"]
[Annotator "ChessBase"]
[PlyCount "69"]
[EventDate "2018.12.14"]
[EventType "swiss"]
[EventCountry "ESP"]
[SourceTitle "playchess.com"]
[Source "ChessBase"]
[SourceQuality "1"]
[TimeControl "40/5400+30:1800+30"]

1. d4 {[%emt 0:00:00]} d6 {[%emt 0:00:50]} 2. e4 {[%emt 0:00:08]} g6 {[%emt 0:00:03]} 3. Nc3 {[%emt 0:01:08]} a6 {[%emt 0:00:26]} 4. Be3 {[%emt 0:01:16]} Bg7 {[%emt 0:00:09]} 5. Qd2 {[%emt 0:00:18]} Nd7 {[%emt 0:00:35]} 6. O-O-O {[%emt 0:00:38]} b5 {[%emt 0:00:02]} 7. h4 {[%emt 0:00:15]} h5 {[%emt 0:00:08]} 8. Nh3 {[%emt 0:00:29]} Ngf6 {[%emt 0:02:31]} 9. f3 {[%emt 0:00:52]} Bb7 {[%emt 0:00:02]} 10. Ng5 {[%emt 0:00:14]} e6 {[%emt 0:00:02]} 11. Qf2 {[%emt 0:03:49]} Qe7 {[%emt 0:00:41]} 12. Be2 {[%emt 0:04:07]} Rc8 {[%emt 0:05:05]} 13. d5 {[%emt 0:22:02]} e5 {[%emt 0:13:00]} 14. g4 {[%emt 0:09:25]} b4 {[%emt 0:04:36]} 15. Nb1 {[%emt 0:00:52]} c6 {[%emt 0:01:29]} 16. gxh5 {[%emt 0:07:53]} Nxh5 {[%emt 0:00:36]} 17. dxc6 {[%emt 0:06:43]} Rxc6 {[%emt 0:00:05]} 18. Nd2 {[%emt 0:00:11]} O-O {[%emt 0:04:53]} 19. Bc4 {[%emt 0:00:16]} Ndf6 {[%emt 0:00:22]} 20. Kb1 {[%emt 0:00:33]} Nf4 {[%emt 0:04:38]} 21. Bb3 {[%emt 0:01:54]} Rc7 {[%emt 0:09:30]} 22. Bb6 {[%emt 0:06:37]} Rcc8 {[%emt 0:00:05]} 23. Ba5 {[%emt 0:00:37]} Rb8 {[%emt 0:46:01]} 24. Bxb4 {[%emt 0:11:03]} Bxe4 {[%emt 0:00:09]} 25. Ba3 {[%emt 0:00:36]} Bd5 {[%emt 0:02:41]} 26. Nde4 {[%emt 0:00:22]} Nxe4 {[%emt 0:03:21]} 27. Nxe4 {[%emt 0:00:28]} Bxe4 {[%emt 0:00:37]} 28. Bxd6 {[%emt 0:07:29]} Qf6 {[%emt 0:00:44]} 29. fxe4 {[%emt 0:01:26]} Rxb3 {[%emt 0:00:02]} 30. axb3 {[%emt 0:00:34]} Rc8 {[%emt 0:00:02]} 31. Bb4 {[%emt 0:00:59]} Qc6 {[%emt 0:00:34]} 32. Rhe1 {[%emt 0:01:25]} Qb5 {[%emt 0:00:02]} 33. Bc3 {[%emt 0:00:36]} a5 {[%emt 0:00:06]} 34. Qa7 {[%emt 0:00:29]} Ne2 {[%emt 0:00:53]} 35. Rd5 {[%emt 0:00:55]} 1-0

[Event "V Sunway Sitges Open 2018"]
[Site "Sitges"]
[Date "2018.12.18"]
[Round "5"]
[White "Sarkar, Justin"]
[Black "Sosa, Tomas"]
[Result "0-1"]
[ECO "A53"]
[WhiteElo "2332"]
[BlackElo "2488"]
[Annotator "ChessBase"]
[PlyCount "100"]
[EventDate "2018.12.14"]
[EventType "swiss"]
[EventCountry "ESP"]
[SourceTitle "playchess.com"]
[Source "ChessBase"]
[SourceQuality "1"]
[TimeControl "40/5400+30:1800+30"]

1. d4 {[%emt 0:00:00]} Nf6 {[%emt 0:11:52]} 2. c4 {[%emt 0:00:00]} d6 {[%emt 0:00:05]} 3. Nc3 {[%emt 0:00:06]} Bf5 {[%emt 0:00:05]} 4. Qb3 {[%emt 0:00:40]} Qc8 {[%emt 0:00:52]} 5. g3 {[%emt 0:00:51]} c6 {[%emt 0:05:54]} 6. Bg2 {[%emt 0:00:51]} e5 {[%emt 0:02:32]} 7. Nf3 {[%emt 0:00:44]} Nbd7 {[%emt 0:05:05]} 8. O-O {[%emt 0:01:46]} Be7 {[%emt 0:00:36]} 9. Nh4 {[%emt 0:16:17]} Bg4 {[%emt 0:03:59]} 10. d5 {[%emt 0:00:18]} O-O {[%emt 0:05:51]} 11. e4 {[%emt 0:17:05]} Nc5 {[%emt 0:10:15]} 12. Qc2 {[%emt 0:03:05]} cxd5 {[%emt 0:00:11]} 13. cxd5 {[%emt 0:00:21]} g6 {[%emt 0:00:13]} 14. Bh6 {[%emt 0:02:09]} Re8 {[%emt 0:01:10]} 15. b4 {[%emt 0:07:09]} Na6 {[%emt 0:02:06]} 16. Qb3 {[%emt 0:00:33]} Bh3 {[%emt 0:08:02]} 17. Nf3 {[%emt 0:05:13]} Qg4 {[%emt 0:01:42]} 18. Rfe1 {[%emt 0:05:52]} Qh5 {[%emt 0:01:15]} 19. Bg5 {[%emt 0:01:11]} Nc7 {[%emt 0:04:13]} 20. Bxh3 {[%emt 0:03:41]} Qxh3 {[%emt 0:00:12]} 21. Bxf6 {[%emt 0:00:12]} Bxf6 {[%emt 0:00:07]} 22. b5 {[%emt 0:00:10]} Rec8 {[%emt 0:02:50]} 23. a4 {[%emt 0:02:28]} Ne8 {[%emt 0:00:40]} 24. a5 {[%emt 0:00:41]} Bd8 {[%emt 0:00:50]} 25. a6 {[%emt 0:04:18]} Rab8 {[%emt 0:00:30]} 26. axb7 {[%emt 0:00:47]} Rxb7 {[%emt 0:00:07]} 27. Ra6 {[%emt 0:00:08]} Bb6 {[%emt 0:00:22]} 28. Na4 {[%emt 0:01:09]} Nf6 {[%emt 0:13:16]} 29. Nxb6 {[%emt 0:00:39]} axb6 {[%emt 0:00:05]} 30. Nd2 {[%emt 0:12:35]} Ng4 {[%emt 0:03:39]} 31. Nf1 {[%emt 0:00:22]} Rbc7 {[%emt 0:00:34]} 32. Ra2 {[%emt 0:03:49]} Rc3 {[%emt 0:05:58]} 33. Qb4 {[%emt 0:02:19]} Rc2 {[%emt 0:02:58]} 34. Qb3 {[%emt 0:01:04]} R2c3 {[%emt 0:01:05]} 35. Qb4 {[%emt 0:00:20]} Rc2 {[%emt 0:01:37]} 36. Qa3 {[%emt 0:02:41]} Kg7 {[%emt 0:02:03]} 37. Qa4 {[%emt 0:05:53]} R2c4 {[%emt 0:00:37]} 38. Qa3 {[%emt 0:00:36]} Rc2 {[%emt 0:03:53]} 39. Qa4 {[%emt 0:00:18]} R2c4 {[%emt 0:01:32]} 40. Qa3 {[%emt 0:00:00]} R8c5 {[%emt 0:00:00]} 41. Rae2 {[%emt 0:08:10]} Rc2 {[%emt 0:02:24]} 42. Qd3 {[%emt 0:16:24]} R2c3 {[%emt 0:00:46]} 43. Qb1 {[%emt 0:00:47]} h5 {[%emt 0:00:09]} 44. Rb2 {[%emt 0:00:29]} h4 {[%emt 0:07:39]} 45. Rb3 {[%emt 0:00:37]} Nxh2 {[%emt 0:02:53]} 46. Rxc3 {[%emt 0:05:43]} Rxc3 {[%emt 0:00:07]} 47. Nxh2 {[%emt 0:00:05]} hxg3 {[%emt 0:00:05]} 48. Nf1 {[%emt 0:00:06]} gxf2+ {[%emt 0:00:15]} 49. Kxf2 {[%emt 0:00:03]} Qf3+ {[%emt 0:00:35]} 50. Kg1 {[%emt 0:00:03]} Qg4+ {[%emt 0:00:06]} 0-1

[Event "V Sunway Sitges Open 2018"]
[Site "Sitges"]
[Date "2018.12.18"]
[Round "5"]
[White "Priyanka Nutakki"]
[Black "Pogonina, Natalija"]
[Result "0-1"]
[ECO "A21"]
[WhiteElo "2293"]
[BlackElo "2465"]
[Annotator "ChessBase"]
[PlyCount "72"]
[EventDate "2018.12.14"]
[EventType "swiss"]
[EventCountry "ESP"]
[SourceTitle "playchess.com"]
[Source "ChessBase"]
[SourceQuality "1"]
[TimeControl "40/5400+30:1800+30"]

1. c4 {[%emt 0:02:01]} e5 {[%emt 0:03:40]} 2. Nc3 c5 {[%emt 0:02:33]} 3. Nf3 {[%emt 0:01:04]} Nc6 {[%emt 0:00:12]} 4. e3 {[%emt 0:01:04]} Nf6 {[%emt 0:00:08]} 5. d4 {[%emt 0:01:13]} cxd4 {[%emt 0:00:16]} 6. exd4 {[%emt 0:00:15]} e4 {[%emt 0:00:24]} 7. Ne5 {[%emt 0:19:22]} Bb4 8. a3 {[%emt 0:09:30]} Ba5 {[%emt 0:21:23]} 9. b4 {[%emt 0:00:40]} Bc7 {[%emt 0:00:22]} 10. f4 O-O 11. Be2 {[%emt 0:03:56]} d6 {[%emt 0:16:06]} 12. Nxc6 {[%emt 0:00:24]} bxc6 13. O-O {[%emt 0:03:55]} a5 {[%emt 0:08:20]} 14. Rb1 {[%emt 0:02:10]} axb4 {[%emt 0:01:49]} 15. axb4 {[%emt 0:00:11]} Bd7 {[%emt 0:02:40]} 16. Be3 {[%emt 0:01:00]} Ra3 {[%emt 0:00:58]} 17. Qc1 {[%emt 0:13:32]} Qa8 18. Qc2 {[%emt 0:00:24]} d5 {[%emt 0:07:09]} 19. Bc1 {[%emt 0:03:03]} Ra7 {[%emt 0:00:24]} 20. c5 {[%emt 0:10:30]} Rb8 {[%emt 0:07:31]} 21. f5 {[%emt 0:02:31]} Rab7 22. Na2 {[%emt 0:04:47]} Ra7 {[%emt 0:08:17]} 23. Nc3 {[%emt 0:01:03]} Rab7 {[%emt 0:02:31]} 24. Na2 {[%emt 0:00:22]} Ra7 {[%emt 0:00:04]} 25. Rb2 {[%emt 0:00:52]} h6 26. Bd2 {[%emt 0:06:46]} e3 {[%emt 0:03:02]} 27. Bxe3 {[%emt 0:02:06]} Re8 {[%emt 0:00:10]} 28. Bf2 Ne4 29. Bg4 {[%emt 0:09:37]} Bf4 {[%emt 0:06:17]} 30. Re1 Nxf2 {[%emt 0:00:56]} 31. Kxf2 {[%emt 0:02:01]} Rxe1 {[%emt 0:00:41]} 32. Kxe1 Bxh2 {[%emt 0:03:51]} 33. Nc1 {[%emt 0:00:17]} Qd8 34. Kf1 {[%emt 0:01:22]} Qh4 {[%emt 0:03:07]} 35. Qe2 {[%emt 0:00:34]} Ra1 {[%emt 0:01:08]} 36. Rc2 {[%emt 0:00:19]} Bf4 {[%emt 0:01:02]} 0-1

[Event "V Sunway Sitges Open 2018"]
[Site "Sitges"]
[Date "2018.12.18"]
[Round "5"]
[White "Ingebretsen, Jens E"]
[Black "Stella, Andrea"]
[Result "0-1"]
[ECO "A34"]
[WhiteElo "2251"]
[BlackElo "2503"]
[Annotator "ChessBase"]
[PlyCount "136"]
[EventDate "2018.12.14"]
[EventType "swiss"]
[EventCountry "ESP"]
[SourceTitle "playchess.com"]
[Source "ChessBase"]
[SourceQuality "1"]
[TimeControl "40/5400+30:1800+30"]

1. c4 {[%emt 0:00:00]} c5 {[%emt 0:04:20]} 2. Nf3 {[%emt 0:00:00]} Nf6 {[%emt 0:00:39]} 3. Nc3 {[%emt 0:00:00]} d5 {[%emt 0:00:33]} 4. cxd5 {[%emt 0:00:26]} Nxd5 {[%emt 0:00:04]} 5. e4 {[%emt 0:00:27]} Nb4 {[%emt 0:01:19]} 6. Bc4 {[%emt 0:00:26]} Be6 {[%emt 0:01:05]} 7. Bb5+ {[%emt 0:00:12]} Bd7 {[%emt 0:00:32]} 8. a3 {[%emt 0:03:08]} N4c6 {[%emt 0:00:45]} 9. e5 {[%emt 0:05:16]} e6 {[%emt 0:04:18]} 10. O-O {[%emt 0:01:10]} Nd4 {[%emt 0:02:30]} 11. Bd3 {[%emt 0:03:51]} Bc6 {[%emt 0:08:27]} 12. Be4 {[%emt 0:05:22]} Be7 {[%emt 0:01:15]} 13. b4 {[%emt 0:03:02]} cxb4 {[%emt 0:06:16]} 14. axb4 {[%emt 0:01:23]} Bxb4 {[%emt 0:01:51]} 15. Bb2 {[%emt 0:10:07]} Bxc3 {[%emt 0:10:01]} 16. dxc3 {[%emt 0:03:18]} Nxf3+ {[%emt 0:04:04]} 17. Qxf3 {[%emt 0:00:33]} O-O {[%emt 0:02:09]} 18. Ba3 {[%emt 0:03:50]} Re8 {[%emt 0:02:14]} 19. Rfd1 {[%emt 0:03:43]} Qc7 {[%emt 0:14:50]} 20. Bd6 {[%emt 0:03:38]} Bxe4 {[%emt 0:00:13]} 21. Qxe4 {[%emt 0:00:54]} Qc6 {[%emt 0:00:03]} 22. Qe3 {[%emt 0:05:19]} Nd7 23. Rxa7 {[%emt 0:11:50]} Rxa7 {[%emt 0:07:01]} 24. Qxa7 {[%emt 0:00:07]} Qxc3 {[%emt 0:05:24]} 25. Qxb7 {[%emt 0:08:10]} Nxe5 {[%emt 0:03:18]} 26. Bxe5 {[%emt 0:02:06]} Qxe5 {[%emt 0:00:15]} 27. Qd7 {[%emt 0:00:24]} Rf8 {[%emt 0:02:12]} 28. Qd4 {[%emt 0:00:48]} Qf5 {[%emt 0:00:51]} 29. Qd3 {[%emt 0:00:48]} Qe5 {[%emt 0:00:17]} 30. Qd4 {[%emt 0:00:10]} Qf5 {[%emt 0:00:08]} 31. Qd3 {[%emt 0:00:26]} Qh5 {[%emt 0:01:10]} 32. Qf3 {[%emt 0:07:57]} Qxf3 {[%emt 0:01:22]} 33. gxf3 {[%emt 0:00:02]} Ra8 {[%emt 0:00:15]} 34. Kg2 {[%emt 0:00:14]} Kf8 {[%emt 0:00:09]} 35. Rd7 {[%emt 0:00:12]} Ra4 {[%emt 0:00:33]} 36. Rb7 {[%emt 0:00:28]} g5 {[%emt 0:00:50]} 37. h3 {[%emt 0:00:21]} Kg7 {[%emt 0:00:04]} 38. Rc7 {[%emt 0:00:52]} Kg6 {[%emt 0:00:07]} 39. Re7 {[%emt 0:00:24]} Rf4 {[%emt 0:01:22]} 40. Kg3 {[%emt 0:00:00]} Ra4 {[%emt 0:00:00]} 41. Kg2 {[%emt 0:01:32]} Ra3 {[%emt 0:01:54]} 42. Kg3 {[%emt 0:01:03]} Ra6 {[%emt 0:02:09]} 43. Rb7 {[%emt 0:02:07]} h5 {[%emt 0:00:25]} 44. Rb4 {[%emt 0:01:37]} Ra5 {[%emt 0:00:14]} 45. Rc4 {[%emt 0:00:29]} Rd5 {[%emt 0:00:37]} 46. Ra4 {[%emt 0:00:33]} Kf5 {[%emt 0:01:33]} 47. Rb4 {[%emt 0:00:13]} f6 {[%emt 0:01:21]} 48. Ra4 {[%emt 0:00:49]} Rd3 {[%emt 0:01:32]} 49. Rb4 {[%emt 0:00:24]} e5 {[%emt 0:00:17]} 50. Ra4 {[%emt 0:01:15]} Rd4 {[%emt 0:00:18]} 51. Ra6 {[%emt 0:00:41]} g4 {[%emt 0:01:09]} 52. fxg4+ {[%emt 0:00:58]} hxg4 {[%emt 0:00:11]} 53. hxg4+ {[%emt 0:00:12]} Rxg4+ {[%emt 0:00:02]} 54. Kf3 {[%emt 0:00:10]} Rg1 {[%emt 0:02:55]} 55. Rb6 {[%emt 0:01:11]} e4+ {[%emt 0:03:10]} 56. Ke2 {[%emt 0:04:11]} Ra1 {[%emt 0:03:11]} 57. Rb2 {[%emt 0:07:04]} Kf4 {[%emt 0:00:18]} 58. Rc2 {[%emt 0:00:06]} f5 {[%emt 0:00:28]} 59. Rb2 {[%emt 0:00:20]} Kg4 {[%emt 0:04:57]} 60. Rb8 {[%emt 0:00:55]} Ra2+ {[%emt 0:00:38]} 61. Kf1 {[%emt 0:05:37]} f4 {[%emt 0:00:42]} 62. Rb3 {[%emt 0:02:19]} f3 {[%emt 0:02:28]} 63. Kg1 {[%emt 0:13:33]} Kh3 {[%emt 0:02:22]} 64. Rb1 {[%emt 0:00:59]} e3 {[%emt 0:00:48]} 65. fxe3 {[%emt 0:01:17]} Kg3 {[%emt 0:00:06]} 66. e4 {[%emt 0:01:33]} Rg2+ {[%emt 0:00:15]} 67. Kf1 {[%emt 0:00:47]} Rh2 {[%emt 0:00:03]} 68. Kg1 {[%emt 0:00:28]} f2+ {[%emt 0:00:06]} 0-1